[Event "RUS-chT Men Rapid 2019"]
[Site "Sochi"]
[Date "2019.10.18"]
[Round "4.22"]
[White "Vakhlamov, Igor L."]
[Black "Goltsev, Dmitry"]
[Result "1-0"]
[ECO "B40"]
[WhiteElo "2413"]
[BlackElo "2309"]
[Annotator "NA"]
[PlyCount "73"]
[EventDate "2019.10.18"]
[EventType "swiss"]
[EventCountry "RUS"]
[SourceTitle "playchess.com"]
[Source "ChessBase"]
[SourceQuality "1"]
[TimeControl "900+10"]

1. e4 {[%emt 0:00:00]} c5 {[%emt 0:00:00]} 2. Nf3 {[%emt 0:00:00]} e6 {[%emt 0:00:00]} 3. g3 {[%emt 0:00:00]} Nc6 {[%emt 0:00:00]} 4. Bg2 {[%emt 0:00:00]} g6 {[%emt 0:00:01]} 5. d4 {[%emt 0:00:00]} Bg7 {[%emt 0:00:31]} 6. dxc5 {[%emt 0:00:32]} Qa5+ {[%emt 0:00:07]} 7. c3 {[%emt 0:01:05]} Qxc5 {[%emt 0:00:03]} 8. Be3 {[%emt 0:00:09]} Qe7 {[%emt 0:00:15]} 9. O-O {[%emt 0:02:08]} Nf6 {[%emt 0:00:13]} 10. e5 {[%emt 0:00:16]} Ng4 {[%emt 0:00:53]} 11. Bg5 {[%emt 0:00:07]} Qf8 {[%emt 0:00:28]} 12. Na3 {[%emt 0:01:27]} h6 {[%emt 0:00:46]} 13. Bd2 {[%emt 0:05:41]} Qe7 {[%emt 0:00:26]} 14. Nc4 {[%emt 0:01:01]} Ngxe5 {[%emt 0:00:41]} 15. Nfxe5 {[%emt 0:00:16]} Nxe5 {[%emt 0:00:03]} 16. Nxe5 {[%emt 0:00:38]} Bxe5 {[%emt 0:00:01]} 17. Re1 {[%emt 0:00:00]} d6 {[%emt 0:01:21]} 18. Qa4+ {[%emt 0:01:22]} Qd7 {[%emt 0:01:31]} 19. Qa3 {[%emt 0:01:23]} h5 {[%emt 0:01:01]} 20. Rad1 {[%emt 0:00:13]} Qe7 {[%emt 0:01:05]} 21. h4 {[%emt 0:01:47]} Bf6 {[%emt 0:01:20]} 22. Bf4 {[%emt 0:00:12]} Be5 {[%emt 0:01:24]} 23. Bg5 {[%emt 0:00:15]} f6 {[%emt 0:00:04]} 24. Be3 {[%emt 0:00:07]} d5 {[%emt 0:02:02]} 25. Bc5 {[%emt 0:00:00]} Qc7 {[%emt 0:00:12]} 26. f4 {[%emt 0:00:19]} Bxf4 {[%emt 0:00:23]} 27. gxf4 {[%emt 0:00:01]} Qxf4 {[%emt 0:00:02]} 28. Rxd5 {[%emt 0:00:25]} Qxh4 {[%emt 0:00:14]} 29. Bf2 {[%emt 0:00:01]} Qf4 {[%emt 0:00:31]} 30. Rd4 {[%emt 0:00:07]} Qf5 {[%emt 0:00:14]} 31. Qa4+ {[%emt 0:00:05]} Kf7 {[%emt 0:00:53]} 32. Rf4 {[%emt 0:00:13]} Qd3 {[%emt 0:00:34]} 33. Bd4 {[%emt 0:00:10]} e5 {[%emt 0:00:19]} 34. Bxe5 {[%emt 0:00:01]} Bf5 {[%emt 0:00:04]} 35. Rd4 {[%emt 0:00:06]} Qa6 {[%emt 0:00:17]} 36. Rd7+ {[%emt 0:00:20]} Ke8 {[%emt 0:01:21]} 37. Bd6+ {[%emt 0:00:13]} 1-0

[Event "RUS-chT Men Rapid 2019"]
[Site "Sochi"]
[Date "2019.10.18"]
[Round "4.23"]
[White "Kulik, Artur"]
[Black "Tsoi, Dmitry"]
[Result "1-0"]
[ECO "A80"]
[WhiteElo "2014"]
[BlackElo "2329"]
[Annotator "NA"]
[PlyCount "165"]
[EventDate "2019.10.18"]
[EventType "swiss"]
[EventCountry "RUS"]
[SourceTitle "playchess.com"]
[Source "ChessBase"]
[SourceQuality "1"]
[TimeControl "900+10"]

1. d4 {[%emt 0:00:00]} f5 {[%emt 0:00:00]} 2. Nf3 {[%emt 0:00:00]} Nf6 {[%emt 0:00:00]} 3. c4 {[%emt 0:00:00]} e6 {[%emt 0:00:00]} 4. g3 {[%emt 0:00:25]} d5 {[%emt 0:00:00]} 5. Bg2 {[%emt 0:00:01]} c6 {[%emt 0:00:00]} 6. O-O {[%emt 0:00:02]} Bd6 {[%emt 0:00:00]} 7. Nbd2 {[%emt 0:00:05]} O-O {[%emt 0:00:00]} 8. b3 {[%emt 0:00:12]} Qe7 {[%emt 0:00:00]} 9. Bb2 {[%emt 0:00:11]} Nbd7 {[%emt 0:00:00]} 10. Ne5 {[%emt 0:00:57]} a5 {[%emt 0:00:01]} 11. Ndf3 {[%emt 0:00:30]} a4 {[%emt 0:00:03]} 12. Nd3 {[%emt 0:00:23]} Ne4 {[%emt 0:00:10]} 13. Nfe5 {[%emt 0:01:23]} g5 {[%emt 0:00:48]} 14. f3 {[%emt 0:02:36]} Nef6 {[%emt 0:00:04]} 15. Nf2 {[%emt 0:01:06]} f4 {[%emt 0:00:07]} 16. Nfd3 {[%emt 0:01:02]} Nh5 {[%emt 0:00:05]} 17. Qe1 {[%emt 0:00:35]} Nxe5 {[%emt 0:00:23]} 18. dxe5 {[%emt 0:01:17]} Bc5+ {[%emt 0:00:26]} 19. Nxc5 {[%emt 0:00:15]} Qxc5+ {[%emt 0:00:02]} 20. Qf2 {[%emt 0:00:11]} Qxf2+ {[%emt 0:00:20]} 21. Kxf2 {[%emt 0:00:02]} c5 {[%emt 0:00:01]} 22. g4 {[%emt 0:01:10]} Ng7 {[%emt 0:00:02]} 23. Rfd1 {[%emt 0:00:42]} d4 {[%emt 0:00:02]} 24. b4 {[%emt 0:00:04]} b6 {[%emt 0:00:07]} 25. Ba3 {[%emt 0:00:16]} Ba6 {[%emt 0:00:29]} 26. bxc5 {[%emt 0:00:26]} bxc5 {[%emt 0:01:52]} 27. Bxc5 {[%emt 0:00:02]} Rfc8 {[%emt 0:00:12]} 28. Bxd4 {[%emt 0:00:02]} Rxc4 {[%emt 0:00:07]} 29. Rac1 {[%emt 0:00:18]} a3 {[%emt 0:00:20]} 30. Bc5 {[%emt 0:00:51]} Bb5 {[%emt 0:00:54]} 31. Rxc4 {[%emt 0:00:27]} Bxc4 {[%emt 0:00:01]} 32. Rc1 {[%emt 0:00:12]} Bxa2 {[%emt 0:00:15]} 33. Ra1 {[%emt 0:00:06]} Rc8 {[%emt 0:01:15]} 34. Bxa3 {[%emt 0:00:06]} Bd5 {[%emt 0:00:02]} 35. Rc1 {[%emt 0:00:16]} Rb8 {[%emt 0:00:05]} 36. Rc3 {[%emt 0:00:17]} Rb1 {[%emt 0:00:10]} 37. e3 {[%emt 0:00:51]} fxe3+ {[%emt 0:00:15]} 38. Kxe3 {[%emt 0:00:30]} Ne8 {[%emt 0:00:02]} 39. Bc1 {[%emt 0:00:16]} h6 {[%emt 0:00:12]} 40. Kf2 {[%emt 0:00:17]} Ra1 {[%emt 0:00:15]} 41. Kg3 {[%emt 0:00:48]} Ra2 {[%emt 0:00:27]} 42. Bf1 {[%emt 0:00:08]} Kf7 {[%emt 0:00:04]} 43. h4 {[%emt 0:00:30]} gxh4+ {[%emt 0:00:06]} 44. Kxh4 {[%emt 0:00:02]} Rf2 {[%emt 0:00:02]} 45. Bb5 {[%emt 0:00:17]} Rxf3 {[%emt 0:00:34]} 46. Rc8 {[%emt 0:00:34]} Ng7 {[%emt 0:00:02]} 47. Bxh6 {[%emt 0:00:36]} Kg6 {[%emt 0:00:09]} 48. Bxg7 {[%emt 0:00:31]} Kxg7 {[%emt 0:00:02]} 49. Rc7+ {[%emt 0:00:12]} Kf8 {[%emt 0:00:07]} 50. Kg5 {[%emt 0:00:22]} Re3 {[%emt 0:00:02]} 51. Kf6 {[%emt 0:00:07]} Rf3+ {[%emt 0:00:01]} 52. Kg5 {[%emt 0:00:10]} Re3 {[%emt 0:00:01]} 53. Rc8+ {[%emt 0:00:07]} Kg7 {[%emt 0:00:19]} 54. Rc7+ {[%emt 0:00:06]} Kf8 {[%emt 0:00:01]} 55. Kf6 {[%emt 0:00:47]} Rf3+ {[%emt 0:00:01]} 56. Kg6 {[%emt 0:00:15]} Be4+ {[%emt 0:00:01]} 57. Kh6 {[%emt 0:00:15]} Rh3+ {[%emt 0:00:48]} 58. Kg5 {[%emt 0:00:01]} Bd5 {[%emt 0:00:39]} 59. Rc8+ {[%emt 0:00:06]} Kg7 {[%emt 0:00:05]} 60. Rc7+ {[%emt 0:00:09]} Kf8 {[%emt 0:00:01]} 61. Rc8+ {[%emt 0:00:13]} Kg7 {[%emt 0:00:01]} 62. Be8 {[%emt 0:00:26]} Re3 {[%emt 0:00:06]} 63. Rc7+ {[%emt 0:00:02]} Kf8 {[%emt 0:00:10]} 64. Bg6 {[%emt 0:00:07]} Rf3 {[%emt 0:01:25]} 65. Kh6 {[%emt 0:00:10]} Rf4 {[%emt 0:00:52]} 66. Kg5 {[%emt 0:00:11]} Rf2 {[%emt 0:00:13]} 67. Kh6 {[%emt 0:00:19]} Rf4 {[%emt 0:00:11]} 68. Bh5 {[%emt 0:00:10]} Rf2 {[%emt 0:04:49]} 69. g5 {[%emt 0:00:05]} Be4 {[%emt 0:01:07]} 70. g6 {[%emt 0:00:02]} Bxg6 {[%emt 0:00:02]} 71. Kxg6 {[%emt 0:00:07]} Ke8 {[%emt 0:00:10]} 72. Bg4 {[%emt 0:00:24]} Rg2 {[%emt 0:00:01]} 73. Kg5 {[%emt 0:00:04]} Rg1 {[%emt 0:00:11]} 74. Ra7 {[%emt 0:00:03]} Rg2 {[%emt 0:00:04]} 75. Rg7 {[%emt 0:00:15]} Kf8 {[%emt 0:00:14]} 76. Ra7 {[%emt 0:00:01]} Ke8 {[%emt 0:00:00]} 77. Rh7 {[%emt 0:00:03]} Rg1 {[%emt 0:00:05]} 78. Rb7 {[%emt 0:00:18]} Rg2 {[%emt 0:00:08]} 79. Kf4 {[%emt 0:00:11]} Rf2+ {[%emt 0:00:05]} 80. Ke3 {[%emt 0:00:05]} Rf1 {[%emt 0:00:01]} 81. Bxe6 {[%emt 0:00:04]} Ra1 {[%emt 0:00:04]} 82. Kf4 {[%emt 0:00:08]} Rf1+ {[%emt 0:00:01]} 83. Kg5 {[%emt 0:00:02]} 1-0

[Event "RUS-chT Men Rapid 2019"]
[Site "Sochi"]
[Date "2019.10.18"]
[Round "4.24"]
[White "Frolov, Aleksey G."]
[Black "Kolchin, Maxim"]
[Result "0-1"]
[ECO "C78"]
[WhiteElo "2093"]
[BlackElo "2077"]
[Annotator "NA"]
[PlyCount "122"]
[EventDate "2019.10.18"]
[EventType "swiss"]
[EventCountry "RUS"]
[SourceTitle "playchess.com"]
[Source "ChessBase"]
[SourceQuality "1"]
[TimeControl "900+10"]

1. e4 {[%emt 0:00:00]} e5 {[%emt 0:00:00]} 2. Nf3 {[%emt 0:00:00]} Nc6 {[%emt 0:00:00]} 3. Bb5 {[%emt 0:00:00]} a6 {[%emt 0:00:00]} 4. Ba4 {[%emt 0:00:00]} Nf6 {[%emt 0:00:00]} 5. O-O {[%emt 0:00:00]} b5 {[%emt 0:00:00]} 6. Bb3 {[%emt 0:00:00]} Be7 {[%emt 0:00:00]} 7. d3 {[%emt 0:00:04]} O-O {[%emt 0:00:03]} 8. a4 {[%emt 0:00:01]} Bb7 {[%emt 0:00:04]} 9. Re1 {[%emt 0:00:10]} d6 {[%emt 0:00:06]} 10. Nc3 {[%emt 0:00:03]} Na5 {[%emt 0:00:11]} 11. Ba2 {[%emt 0:00:20]} b4 {[%emt 0:00:30]} 12. Ne2 {[%emt 0:00:03]} c5 {[%emt 0:00:08]} 13. Bd2 {[%emt 0:00:01]} Nc6 {[%emt 0:00:03]} 14. Ng3 {[%emt 0:00:06]} Bc8 {[%emt 0:00:37]} 15. c3 {[%emt 0:00:12]} bxc3 {[%emt 0:00:05]} 16. bxc3 {[%emt 0:00:01]} Re8 {[%emt 0:00:07]} 17. Ng5 {[%emt 0:00:20]} Rf8 {[%emt 0:00:01]} 18. Qb3 {[%emt 0:02:20]} Na5 {[%emt 0:02:05]} 19. Nxf7 {[%emt 0:00:48]} Qc7 {[%emt 0:00:16]} 20. Qd1 {[%emt 0:00:42]} Rxf7 {[%emt 0:00:14]} 21. Bxf7+ {[%emt 0:00:03]} Kxf7 {[%emt 0:00:02]} 22. f4 {[%emt 0:00:06]} Nc6 {[%emt 0:00:51]} 23. Rf1 {[%emt 0:00:10]} Kg8 {[%emt 0:00:03]} 24. fxe5 {[%emt 0:00:21]} Nxe5 {[%emt 0:00:05]} 25. Bf4 {[%emt 0:00:25]} Ng6 {[%emt 0:00:25]} 26. Qb3+ {[%emt 0:00:38]} c4 {[%emt 0:00:56]} 27. Qxc4+ {[%emt 0:00:13]} Qxc4 {[%emt 0:00:02]} 28. dxc4 {[%emt 0:00:02]} Nxf4 {[%emt 0:00:05]} 29. Rxf4 {[%emt 0:00:01]} Be6 {[%emt 0:00:01]} 30. Nf5 {[%emt 0:00:10]} Bf8 {[%emt 0:00:03]} 31. Rd1 {[%emt 0:00:13]} Bxc4 {[%emt 0:01:33]} 32. Nxd6 {[%emt 0:00:05]} Bb3 {[%emt 0:00:04]} 33. Rd4 {[%emt 0:00:14]} Rd8 {[%emt 0:01:08]} 34. e5 {[%emt 0:00:08]} Nd5 {[%emt 0:00:05]} 35. Rf3 {[%emt 0:00:26]} Nc7 {[%emt 0:00:44]} 36. a5 {[%emt 0:00:29]} Ne6 {[%emt 0:00:07]} 37. Rd2 {[%emt 0:00:04]} Ba4 {[%emt 0:00:29]} 38. c4 {[%emt 0:01:05]} Rb8 {[%emt 0:00:34]} 39. h3 {[%emt 0:00:25]} Bc6 {[%emt 0:00:02]} 40. Rf1 {[%emt 0:00:08]} Be7 {[%emt 0:00:17]} 41. Nf5 {[%emt 0:00:05]} Bb4 {[%emt 0:00:12]} 42. Re2 {[%emt 0:00:28]} Bc5+ {[%emt 0:00:32]} 43. Kh2 {[%emt 0:00:06]} Rb4 {[%emt 0:00:17]} 44. Rd1 {[%emt 0:00:50]} Rxc4 {[%emt 0:00:20]} 45. Rb2 {[%emt 0:00:04]} h6 {[%emt 0:02:22]} 46. Rb8+ {[%emt 0:00:48]} Kh7 {[%emt 0:00:02]} 47. Rc8 {[%emt 0:00:46]} Ba4 {[%emt 0:00:17]} 48. Ra1 {[%emt 0:00:27]} Bd7 {[%emt 0:00:44]} 49. Ra8 {[%emt 0:00:28]} Nc7 {[%emt 0:00:11]} 50. Rb8 {[%emt 0:01:15]} Bxf5 {[%emt 0:00:03]} 51. Rb7 {[%emt 0:00:01]} Ne6 {[%emt 0:00:21]} 52. Re1 {[%emt 0:00:41]} Re4 {[%emt 0:00:41]} 53. Rxe4 {[%emt 0:00:25]} Bxe4 {[%emt 0:00:02]} 54. Rb8 {[%emt 0:00:10]} Bd4 {[%emt 0:00:12]} 55. Re8 {[%emt 0:00:03]} Bd5 {[%emt 0:00:14]} 56. g3 {[%emt 0:00:04]} Bxe5 {[%emt 0:00:03]} 57. h4 {[%emt 0:00:05]} Nd4 {[%emt 0:00:26]} 58. Kh3 {[%emt 0:00:22]} Nc6 {[%emt 0:00:12]} 59. Ra8 {[%emt 0:01:08]} Bc4 {[%emt 0:00:13]} 60. Rc8 {[%emt 0:00:18]} Bb5 {[%emt 0:00:03]} 61. g4 {[%emt 0:00:20]} Bf1# {[%emt 0:00:03]} 0-1

[Event "RUS-chT Men Rapid 2019"]
[Site "Sochi"]
[Date "2019.10.18"]
[Round "4.25"]
[White "Kokarev, Dmitry"]
[Black "Shcherbin, Matvei"]
[Result "1-0"]
[ECO "A06"]
[WhiteElo "2593"]
[BlackElo "2366"]
[Annotator "ChessBase"]
[PlyCount "127"]
[EventDate "2019.10.18"]
[EventType "swiss"]
[EventCountry "RUS"]
[SourceTitle "playchess.com"]
[Source "ChessBase"]
[SourceQuality "1"]
[TimeControl "900+10"]

1. g3 {[%emt 0:00:00]} d5 {[%emt 0:00:00]} 2. Nf3 {[%emt 0:00:00]} Nf6 {[%emt 0:00:00]} 3. Bg2 {[%emt 0:00:00]} e6 {[%emt 0:00:08]} 4. O-O {[%emt 0:00:00]} Be7 {[%emt 0:00:03]} 5. d3 {[%emt 0:00:03]} b6 {[%emt 0:00:07]} 6. Nbd2 {[%emt 0:00:04]} Bb7 {[%emt 0:00:01]} 7. e4 {[%emt 0:00:03]} c5 {[%emt 0:00:45]} 8. Re1 {[%emt 0:00:22]} Nc6 {[%emt 0:00:19]} 9. Qe2 {[%emt 0:00:10]} O-O {[%emt 0:01:15]} 10. e5 {[%emt 0:00:03]} Nd7 {[%emt 0:00:01]} 11. h4 {[%emt 0:00:06]} Re8 {[%emt 0:00:07]} 12. Nf1 {[%emt 0:00:04]} f6 {[%emt 0:00:09]} 13. exf6 {[%emt 0:00:09]} Bxf6 {[%emt 0:00:01]} 14. N1h2 {[%emt 0:00:10]} Nde5 {[%emt 0:01:46]} 15. Nxe5 {[%emt 0:00:04]} Nxe5 {[%emt 0:00:01]} 16. Bg5 {[%emt 0:00:37]} Bxg5 {[%emt 0:01:42]} 17. hxg5 {[%emt 0:00:03]} Nf7 {[%emt 0:00:01]} 18. f4 {[%emt 0:00:12]} e5 {[%emt 0:00:01]} 19. Qg4 {[%emt 0:00:20]} exf4 {[%emt 0:00:12]} 20. gxf4 {[%emt 0:00:04]} Qd6 {[%emt 0:00:14]} 21. Nf1 {[%emt 0:00:24]} Bc6 {[%emt 0:01:26]} 22. Ne3 {[%emt 0:01:15]} Bd7 {[%emt 0:06:25]} 23. Qf3 {[%emt 0:01:16]} d4 {[%emt 0:00:16]} 24. Nc4 {[%emt 0:00:02]} Qf8 {[%emt 0:00:18]} 25. Qb7 {[%emt 0:00:51]} Rxe1+ {[%emt 0:00:05]} 26. Rxe1 {[%emt 0:00:02]} Re8 {[%emt 0:00:01]} 27. Rxe8 {[%emt 0:03:15]} Qxe8 {[%emt 0:00:00]} 28. Be4 {[%emt 0:00:02]} Qe6 {[%emt 0:01:14]} 29. Qa8+ {[%emt 0:00:34]} Be8 {[%emt 0:00:22]} 30. Kf2 {[%emt 0:02:33]} Kf8 {[%emt 0:01:40]} 31. Qxa7 {[%emt 0:00:39]} Qg4 {[%emt 0:00:03]} 32. Qc7 {[%emt 0:00:23]} Qh4+ {[%emt 0:00:08]} 33. Kf1 {[%emt 0:00:02]} Qh3+ {[%emt 0:00:35]} 34. Bg2 {[%emt 0:00:04]} Qg4 {[%emt 0:00:01]} 35. Nxb6 {[%emt 0:00:32]} Qd1+ {[%emt 0:00:01]} 36. Kf2 {[%emt 0:00:02]} Qxc2+ {[%emt 0:00:18]} 37. Kg1 {[%emt 0:00:01]} Qxd3 {[%emt 0:01:00]} 38. Nd5 {[%emt 0:00:37]} Qe2 {[%emt 0:00:21]} 39. Qxc5+ {[%emt 0:00:05]} Kg8 {[%emt 0:00:00]} 40. Qe7 {[%emt 0:01:20]} Qxe7 {[%emt 0:00:21]} 41. Nxe7+ {[%emt 0:00:02]} Kf8 {[%emt 0:00:00]} 42. Nd5 {[%emt 0:00:11]} Nd6 {[%emt 0:00:08]} 43. Kf2 {[%emt 0:00:09]} Bc6 {[%emt 0:00:07]} 44. Nb4 {[%emt 0:00:13]} Bb5 {[%emt 0:00:10]} 45. b3 {[%emt 0:00:02]} Ke7 {[%emt 0:00:11]} 46. a4 {[%emt 0:00:03]} Be8 {[%emt 0:00:01]} 47. Nc6+ {[%emt 0:00:12]} Kd7 {[%emt 0:00:31]} 48. Nxd4 {[%emt 0:00:03]} Bf7 {[%emt 0:00:00]} 49. b4 {[%emt 0:00:29]} Kc7 {[%emt 0:00:06]} 50. a5 {[%emt 0:00:02]} Nc4 {[%emt 0:00:05]} 51. Bf1 {[%emt 0:00:14]} Nd2 {[%emt 0:00:31]} 52. Bd3 {[%emt 0:00:07]} h6 {[%emt 0:00:06]} 53. Ke3 {[%emt 0:00:46]} hxg5 {[%emt 0:00:06]} 54. Kxd2 {[%emt 0:00:13]} gxf4 {[%emt 0:00:00]} 55. Be4 {[%emt 0:00:21]} Bc4 {[%emt 0:00:05]} 56. b5 {[%emt 0:00:11]} Kd6 {[%emt 0:00:12]} 57. b6 {[%emt 0:00:02]} Ba6 {[%emt 0:00:02]} 58. Kc3 {[%emt 0:00:16]} g5 {[%emt 0:00:07]} 59. Bd3 {[%emt 0:00:14]} Bc8 {[%emt 0:00:24]} 60. a6 {[%emt 0:00:10]} g4 {[%emt 0:00:01]} 61. b7 {[%emt 0:00:13]} Bxb7 {[%emt 0:00:01]} 62. axb7 {[%emt 0:00:01]} Kc7 {[%emt 0:00:01]} 63. Ba6 {[%emt 0:00:06]} f3 {[%emt 0:00:18]} 64. Nc6 {[%emt 0:00:03]} 1-0

[Event "RUS-chT Men Rapid 2019"]
[Site "Sochi"]
[Date "2019.10.18"]
[Round "4.26"]
[White "Eraschenkov, Denis"]
[Black "Shariyazdanov, Andrey"]
[Result "1/2-1/2"]
[ECO "B06"]
[WhiteElo "2382"]
[BlackElo "2519"]
[Annotator "ChessBase"]
[PlyCount "137"]
[EventDate "2019.10.18"]
[EventType "swiss"]
[EventCountry "RUS"]
[SourceTitle "playchess.com"]
[Source "ChessBase"]
[SourceQuality "1"]
[TimeControl "900+10"]

1. e4 {[%emt 0:00:00]} g6 {[%emt 0:00:00]} 2. d4 {[%emt 0:00:00]} Bg7 {[%emt 0:00:00]} 3. Nc3 {[%emt 0:00:09]} d6 {[%emt 0:00:00]} 4. g3 {[%emt 0:00:37]} Nf6 {[%emt 0:00:11]} 5. Bg2 {[%emt 0:00:02]} O-O {[%emt 0:00:10]} 6. Nge2 {[%emt 0:00:04]} Nc6 {[%emt 0:00:17]} 7. d5 {[%emt 0:00:59]} Nb8 {[%emt 0:00:09]} 8. O-O {[%emt 0:00:10]} e5 {[%emt 0:00:58]} 9. dxe6 {[%emt 0:00:18]} fxe6 {[%emt 0:00:04]} 10. f4 {[%emt 0:00:25]} Nbd7 {[%emt 0:02:34]} 11. h3 {[%emt 0:00:39]} Qe7 {[%emt 0:00:52]} 12. Be3 {[%emt 0:01:34]} a6 {[%emt 0:01:31]} 13. Qd2 {[%emt 0:00:26]} Rb8 {[%emt 0:00:18]} 14. a4 {[%emt 0:02:04]} b5 {[%emt 0:03:11]} 15. axb5 {[%emt 0:00:14]} axb5 {[%emt 0:00:01]} 16. Ra7 {[%emt 0:02:52]} b4 {[%emt 0:03:59]} 17. Na4 {[%emt 0:00:50]} Ne8 {[%emt 0:01:39]} 18. Nd4 {[%emt 0:01:41]} Bxd4 {[%emt 0:00:04]} 19. Qxd4 {[%emt 0:00:52]} e5 {[%emt 0:00:16]} 20. Qc4+ {[%emt 0:00:23]} Kh8 {[%emt 0:00:19]} 21. f5 {[%emt 0:00:43]} gxf5 {[%emt 0:00:32]} 22. exf5 {[%emt 0:00:09]} Ndf6 {[%emt 0:00:15]} 23. g4 {[%emt 0:00:13]} Bd7 {[%emt 0:00:52]} 24. g5 {[%emt 0:00:20]} Bb5 {[%emt 0:00:25]} 25. gxf6 {[%emt 0:00:28]} Qxf6 {[%emt 0:00:02]} 26. Qe6 {[%emt 0:00:38]} Bxf1 {[%emt 0:00:08]} 27. Qxf6+ {[%emt 0:00:13]} Rxf6 {[%emt 0:00:03]} 28. Bxf1 {[%emt 0:00:09]} Rxf5 {[%emt 0:00:00]} 29. Bg2 {[%emt 0:00:19]} Rf7 {[%emt 0:00:45]} 30. b3 {[%emt 0:00:47]} Nf6 {[%emt 0:00:09]} 31. Ra8 {[%emt 0:00:09]} Rxa8 {[%emt 0:00:03]} 32. Bxa8 {[%emt 0:00:02]} Nh5 {[%emt 0:00:12]} 33. Nb2 {[%emt 0:00:15]} Nf4 {[%emt 0:00:03]} 34. Bxf4 {[%emt 0:00:37]} Rxf4 {[%emt 0:00:03]} 35. Nd3 {[%emt 0:00:03]} Rd4 {[%emt 0:00:01]} 36. Kf2 {[%emt 0:00:05]} Kg7 {[%emt 0:00:01]} 37. Ke3 {[%emt 0:00:05]} Kf6 {[%emt 0:00:03]} 38. Nf2 {[%emt 0:00:20]} d5 {[%emt 0:00:04]} 39. Bb7 {[%emt 0:00:20]} Ke6 {[%emt 0:00:23]} 40. Bc8+ {[%emt 0:00:03]} Kd6 {[%emt 0:00:01]} 41. Bf5 {[%emt 0:00:10]} h5 {[%emt 0:00:03]} 42. Bg6 {[%emt 0:00:19]} h4 {[%emt 0:00:03]} 43. Nd3 {[%emt 0:00:16]} c5 {[%emt 0:00:07]} 44. Ne1 {[%emt 0:00:06]} Rf4 {[%emt 0:00:36]} 45. Ng2 {[%emt 0:00:06]} Rd4 {[%emt 0:00:21]} 46. Ne1 {[%emt 0:00:03]} c4 {[%emt 0:00:13]} 47. Nf3 {[%emt 0:00:19]} Rf4 {[%emt 0:00:18]} 48. bxc4 {[%emt 0:00:05]} dxc4 {[%emt 0:00:11]} 49. Be4 {[%emt 0:00:03]} c3 {[%emt 0:00:12]} 50. Ne1 {[%emt 0:00:05]} Rf1 {[%emt 0:00:09]} 51. Nd3 {[%emt 0:00:17]} Rb1 {[%emt 0:00:22]} 52. Ke2 {[%emt 0:00:27]} Ke6 {[%emt 0:00:10]} 53. Ne1 {[%emt 0:00:18]} Kf6 {[%emt 0:00:06]} 54. Nf3 {[%emt 0:00:16]} Rh1 {[%emt 0:00:06]} 55. Nxh4 {[%emt 0:00:18]} Rxh3 {[%emt 0:00:07]} 56. Nf3 {[%emt 0:00:06]} Rh8 {[%emt 0:00:03]} 57. Kd3 {[%emt 0:00:06]} Rc8 {[%emt 0:00:02]} 58. Ne1 {[%emt 0:00:17]} Kg5 {[%emt 0:00:01]} 59. Ke3 {[%emt 0:00:04]} Kg4 {[%emt 0:00:03]} 60. Nd3 {[%emt 0:00:03]} Rb8 {[%emt 0:00:17]} 61. Nxe5+ {[%emt 0:00:03]} Kg3 {[%emt 0:00:00]} 62. Bd5 {[%emt 0:00:21]} Rf8 {[%emt 0:00:43]} 63. Nd3 {[%emt 0:00:19]} Rb8 {[%emt 0:00:05]} 64. Kd4 {[%emt 0:00:06]} Kg4 {[%emt 0:00:18]} 65. Bb3 {[%emt 0:00:09]} Kf3 {[%emt 0:00:02]} 66. Kc4 {[%emt 0:00:18]} Ke2 {[%emt 0:00:01]} 67. Nxb4 Kd2 68. Nd5 {[%emt 0:00:28]} Rb7 {[%emt 0:00:25]} 69. Nb4 {[%emt 0:00:18]} 1/2-1/2

[Event "RUS-chT Men Rapid 2019"]
[Site "Sochi"]
[Date "2019.10.18"]
[Round "4.27"]
[White "Ulybin, Mikhail"]
[Black "Keosidi, Konstantin"]
[Result "0-1"]
[ECO "D30"]
[WhiteElo "2455"]
[BlackElo "2400"]
[Annotator "RC"]
[PlyCount "118"]
[EventDate "2019.10.18"]
[EventType "swiss"]
[EventCountry "RUS"]
[SourceTitle "playchess.com"]
[Source "ChessBase"]
[SourceQuality "1"]
[TimeControl "900+10"]

1. d4 {[%emt 0:00:00]} d5 {[%emt 0:00:00]} 2. c4 {[%emt 0:00:01]} e6 {[%emt 0:00:00]} 3. Nf3 {[%emt 0:00:05]} dxc4 {[%emt 0:00:02]} 4. e3 {[%emt 0:00:42]} c5 {[%emt 0:00:08]} 5. Bxc4 {[%emt 0:00:07]} cxd4 {[%emt 0:00:02]} 6. exd4 {[%emt 0:00:10]} Nf6 {[%emt 0:00:03]} 7. O-O {[%emt 0:00:16]} Be7 {[%emt 0:00:01]} 8. Nc3 {[%emt 0:00:08]} O-O {[%emt 0:00:03]} 9. Ne5 {[%emt 0:02:46]} Nc6 {[%emt 0:01:11]} 10. Be3 {[%emt 0:00:09]} Bd7 {[%emt 0:02:19]} 11. f4 {[%emt 0:00:38]} Rc8 {[%emt 0:00:08]} 12. Qe2 {[%emt 0:00:49]} a6 {[%emt 0:00:13]} 13. Rad1 {[%emt 0:00:32]} b5 {[%emt 0:00:09]} 14. Bd3 {[%emt 0:01:45]} Nb4 {[%emt 0:00:13]} 15. Bb1 {[%emt 0:00:09]} Nbd5 {[%emt 0:00:54]} 16. Nxd5 {[%emt 0:03:26]} Nxd5 {[%emt 0:00:25]} 17. Rf3 {[%emt 0:00:36]} g6 {[%emt 0:01:05]} 18. Rh3 {[%emt 0:02:13]} Be8 {[%emt 0:00:37]} 19. f5 {[%emt 0:00:28]} Nxe3 {[%emt 0:02:17]} 20. Qxe3 {[%emt 0:00:22]} Bg5 {[%emt 0:00:23]} 21. Qf2 {[%emt 0:02:49]} exf5 {[%emt 0:00:00]} 22. d5 {[%emt 0:00:10]} Qd6 {[%emt 0:00:34]} 23. Nf3 {[%emt 0:00:13]} Bf6 {[%emt 0:00:11]} 24. Qd2 {[%emt 0:00:09]} f4 {[%emt 0:00:44]} 25. Ne1 {[%emt 0:00:10]} Bd7 {[%emt 0:00:14]} 26. Rb3 {[%emt 0:00:11]} Bg4 {[%emt 0:00:57]} 27. Nf3 {[%emt 0:00:02]} Rfd8 {[%emt 0:00:39]} 28. h3 {[%emt 0:00:04]} Bh5 {[%emt 0:01:42]} 29. Be4 {[%emt 0:00:17]} g5 {[%emt 0:00:32]} 30. Bf5 {[%emt 0:00:15]} Rc5 {[%emt 0:00:14]} 31. Rd3 {[%emt 0:00:07]} Bg6 {[%emt 0:00:51]} 32. Bxg6 {[%emt 0:00:06]} hxg6 {[%emt 0:00:01]} 33. b4 {[%emt 0:00:11]} Rc4 {[%emt 0:00:03]} 34. a3 {[%emt 0:00:03]} Rdc8 {[%emt 0:00:17]} 35. Qf2 {[%emt 0:00:19]} Rc3 {[%emt 0:01:25]} 36. Kh2 {[%emt 0:00:14]} Kg7 {[%emt 0:00:11]} 37. Qe1 {[%emt 0:00:09]} Rxd3 {[%emt 0:00:21]} 38. Rxd3 {[%emt 0:00:02]} Rc7 {[%emt 0:00:18]} 39. Qf2 {[%emt 0:00:12]} Rc8 {[%emt 0:00:35]} 40. Qd2 {[%emt 0:00:17]} g4 {[%emt 0:00:20]} 41. hxg4 {[%emt 0:00:08]} Rh8+ {[%emt 0:00:02]} 42. Kg1 {[%emt 0:00:03]} Qb6+ {[%emt 0:00:04]} 43. Kf1 {[%emt 0:00:16]} Rh1+ {[%emt 0:00:06]} 44. Ke2 {[%emt 0:00:02]} Qd6 {[%emt 0:00:19]} 45. Kf2 {[%emt 0:00:18]} Qb6+ {[%emt 0:00:27]} 46. Ke2 {[%emt 0:00:03]} Qd6 {[%emt 0:00:24]} 47. Rb3 {[%emt 0:00:26]} Qe7+ {[%emt 0:00:32]} 48. Kd3 {[%emt 0:00:08]} Qd7 {[%emt 0:00:04]} 49. Ke2 {[%emt 0:00:13]} Qxg4 {[%emt 0:00:03]} 50. Kd3 {[%emt 0:00:08]} Qf5+ {[%emt 0:00:04]} 51. Ke2 {[%emt 0:00:03]} g5 {[%emt 0:00:15]} 52. Qd3 {[%emt 0:00:08]} Qg4 {[%emt 0:00:06]} 53. Kd2 {[%emt 0:00:11]} Qxg2+ {[%emt 0:00:06]} 54. Qe2 {[%emt 0:00:01]} Qxe2+ {[%emt 0:00:08]} 55. Kxe2 {[%emt 0:00:01]} g4 {[%emt 0:00:01]} 56. Ne1 {[%emt 0:00:09]} f3+ {[%emt 0:00:03]} 57. Nxf3 {[%emt 0:00:04]} gxf3+ {[%emt 0:00:01]} 58. Rxf3 {[%emt 0:00:02]} Rc1 {[%emt 0:00:13]} 59. Kd2 {[%emt 0:00:04]} Rc4 {[%emt 0:00:03]} 0-1